[Event "Titled Tuesday Blitz May 30 Early 2023"]
[White "Buscar, Michael"]
[Black "Kubicka, Anna"]
[WhiteFideId "2603616"]
[BlackFideId "1152254"]
[WhiteElo "2010"]
[BlackElo "2144"]
[Result "1/2-1/2"]
[Round "02"]
[TimeControl "180+2"]
[Date "2023.05.30"]
[WhiteClock "0:00:13"]
[BlackClock "0:00:51"]

1. d4 {[%clk 0:02:59]}  Nf6 {[%clk 0:03:00]} 2. c4 {[%clk 0:02:59]}  c5 {[%clk 0:03:00]} 3. d5 {[%clk 0:02:58]}  e6 {[%clk 0:03:01]} 4. g3 {[%clk 0:02:56]}  exd5 {[%clk 0:03:01]} 5. cxd5 {[%clk 0:02:57]}  d6 {[%clk 0:03:01]} 6. Bg2 {[%clk 0:02:57]}  g6 {[%clk 0:03:02]} 7. Nf3 {[%clk 0:02:54]}  Bg7 {[%clk 0:03:02]} 8. Nc3 {[%clk 0:02:54]}  O-O {[%clk 0:03:03]} 9. Nd2 {[%clk 0:02:52]}  a6 {[%clk 0:03:02]} 10. a4 {[%clk 0:02:52]}  Nbd7 {[%clk 0:03:03]} 11. Nc4 {[%clk 0:02:51]}  Nb6 {[%clk 0:03:03]} 12. Nxb6 {[%clk 0:02:48]}  Qxb6 {[%clk 0:03:04]} 13. a5 {[%clk 0:02:47]}  Qc7 {[%clk 0:03:03]} 14. O-O {[%clk 0:02:44]}  Re8 {[%clk 0:03:03]} 15. Qa4 {[%clk 0:02:35]}  Bd7 {[%clk 0:03:01]} 16. Qh4 {[%clk 0:02:35]}  b5 {[%clk 0:02:48]} 17. axb6 {[%clk 0:02:31]}  Qxb6 {[%clk 0:02:48]} 18. Bg5 {[%clk 0:02:01]}  Nh5 {[%clk 0:02:47]} 19. Rab1 {[%clk 0:01:41]}  h6 {[%clk 0:02:43]} 20. Bd2 {[%clk 0:01:30]}  Rab8 {[%clk 0:02:22]} 21. Bf3 {[%clk 0:01:29]}  Qb4 {[%clk 0:02:14]} 22. Bxh5 {[%clk 0:01:14]}  Qxh4 {[%clk 0:02:13]} 23. gxh4 {[%clk 0:01:15]}  gxh5 {[%clk 0:02:14]} 24. Bf4 {[%clk 0:01:15]}  Be5 {[%clk 0:02:12]} 25. Bxh6 {[%clk 0:01:15]}  Bf5 {[%clk 0:02:07]} 26. e4 {[%clk 0:01:12]}  Bxc3 {[%clk 0:02:06]} 27. bxc3 {[%clk 0:01:06]}  Rxb1 {[%clk 0:02:06]} 28. Rxb1 {[%clk 0:01:05]}  Rxe4 {[%clk 0:02:06]} 29. Rb8+ {[%clk 0:00:56]}  Kh7 {[%clk 0:02:06]} 30. Be3 {[%clk 0:00:56]}  Rxh4 {[%clk 0:02:00]} 31. Rb6 {[%clk 0:00:50]}  Rg4+ {[%clk 0:01:56]} 32. Kf1 {[%clk 0:00:50]}  Rg6 {[%clk 0:01:55]} 33. h4 {[%clk 0:00:42]}  Bd3+ {[%clk 0:01:52]} 34. Ke1 {[%clk 0:00:42]}  Bb5 {[%clk 0:01:51]} 35. Kd2 {[%clk 0:00:34]}  Bc4 {[%clk 0:01:51]} 36. Bf4 {[%clk 0:00:31]}  Bxd5 {[%clk 0:01:47]} 37. Rxa6 {[%clk 0:00:29]}  Rf6 {[%clk 0:01:45]} 38. Bg3 {[%clk 0:00:26]}  Kg6 {[%clk 0:01:30]} 39. Rxd6 {[%clk 0:00:26]}  Rxd6 {[%clk 0:01:29]} 40. Bxd6 {[%clk 0:00:26]}  c4 {[%clk 0:01:29]} 41. Ke3 {[%clk 0:00:27]}  Kf5 {[%clk 0:01:29]} 42. Kd4 {[%clk 0:00:26]}  Be6 {[%clk 0:01:29]} 43. Be7 {[%clk 0:00:25]}  Kf4 {[%clk 0:01:28]} 44. Bd6+ {[%clk 0:00:17]}  Kf3 {[%clk 0:01:28]} 45. Bg3 {[%clk 0:00:18]}  Ke2 {[%clk 0:01:20]} 46. Ke4 {[%clk 0:00:14]}  Kd2 {[%clk 0:01:18]} 47. Be5 {[%clk 0:00:12]}  f5+ {[%clk 0:01:16]} 48. Kf4 {[%clk 0:00:11]}  Ke2 {[%clk 0:01:10]} 49. Bd4 {[%clk 0:00:11]}  Bf7 {[%clk 0:00:57]} 50. Kxf5 {[%clk 0:00:11]}  Kf3 {[%clk 0:00:58]} 51. Kf6 {[%clk 0:00:11]}  Be8 {[%clk 0:00:59]} 52. Kg5 {[%clk 0:00:11]}  Bf7 {[%clk 0:00:59]} 53. Kf6 {[%clk 0:00:12]}  Be8 {[%clk 0:00:59]} 54. Ke5 {[%clk 0:00:12]}  Bf7 {[%clk 0:00:58]} 55. Kd6 {[%clk 0:00:12]}  Bg8 {[%clk 0:00:58]} 56. Kc5 {[%clk 0:00:13]}  Bf7 {[%clk 0:00:59]} 57. Kd6 {[%clk 0:00:13]}  Kf4 {[%clk 0:00:57]} 58. Bf6 {[%clk 0:00:13]}  Kf3 {[%clk 0:00:56]} 59. Ke7 {[%clk 0:00:13]}  Bd5 {[%clk 0:00:55]} 60. Bd4 {[%clk 0:00:13]}  Kf4 {[%clk 0:00:54]} 61. Kf6 {[%clk 0:00:13]}  Bc6 {[%clk 0:00:53]} 62. Kg6 {[%clk 0:00:13]}  Be8+ {[%clk 0:00:53]} 63. Kh6 {[%clk 0:00:13]}  Bf7 {[%clk 0:00:52]} 64. Bf6 {[%clk 0:00:13]}  Kf3 {[%clk 0:00:51]} 65. Bd4 {[%clk 0:00:12]}  Kg4 {[%clk 0:00:50]} 66. Bf6 {[%clk 0:00:12]}  Kf3 {[%clk 0:00:50]} 67. Bd4 {[%clk 0:00:13]}  Kg4 {[%clk 0:00:51]} 68. Bf6 {[%clk 0:00:13]}  Kf3 {[%clk 0:00:51]} 1/2-1/2


[Site "https://www.chess.com"]

[Event "Titled Tuesday Blitz May 30 Early 2023"]
[White "surrenderPLS"]
[Black "KVAIDAN"]
[WhiteElo "2525"]
[BlackElo "2311"]
[Result "1/2-1/2"]
[Round "02"]
[TimeControl "180+2"]
[Date "2023.05.30"]
[WhiteClock "0:00:05"]
[BlackClock "0:01:20"]

1. e4 {[%clk 0:03:00]}  e5 {[%clk 0:02:57]} 2. Nf3 {[%clk 0:03:00]}  d5 {[%clk 0:02:58]} 3. exd5 {[%clk 0:02:57]}  e4 {[%clk 0:02:58]} 4. Qe2 {[%clk 0:02:58]}  Nf6 {[%clk 0:02:58]} 5. d3 {[%clk 0:02:58]}  Bb4+ {[%clk 0:02:59]} 6. Bd2 {[%clk 0:02:57]}  O-O {[%clk 0:02:58]} 7. Bxb4 {[%clk 0:02:25]}  exf3 {[%clk 0:02:57]} 8. Qxf3 {[%clk 0:02:25]}  Re8+ {[%clk 0:02:55]} 9. Kd2 {[%clk 0:02:23]}  Bg4 {[%clk 0:02:52]} 10. Qg3 {[%clk 0:02:16]}  Qxd5 {[%clk 0:02:52]} 11. Nc3 {[%clk 0:02:13]}  Qd4 {[%clk 0:02:48]} 12. Ba3 {[%clk 0:01:56]}  b5 {[%clk 0:02:45]} 13. Re1 {[%clk 0:01:30]}  Nbd7 {[%clk 0:02:39]} 14. Nxb5 {[%clk 0:01:14]}  Qb6 {[%clk 0:02:23]} 15. Nc3 {[%clk 0:00:37]}  Rxe1 {[%clk 0:02:19]} 16. Kxe1 {[%clk 0:00:37]}  Re8+ {[%clk 0:02:19]} 17. Kd2 {[%clk 0:00:29]}  Qe6 {[%clk 0:02:19]} 18. Be2 {[%clk 0:00:20]}  Bxe2 {[%clk 0:02:16]} 19. Re1 {[%clk 0:00:20]}  Nh5 {[%clk 0:02:06]} 20. Rxe2 {[%clk 0:00:17]}  Nxg3 {[%clk 0:02:02]} 21. Rxe6 {[%clk 0:00:17]}  Nf1+ {[%clk 0:02:00]} 22. Ke1 {[%clk 0:00:17]}  Rxe6+ {[%clk 0:02:00]} 23. Kxf1 {[%clk 0:00:17]}  Ne5 {[%clk 0:02:01]} 24. f3 {[%clk 0:00:16]}  Nc6 {[%clk 0:02:01]} 25. Bc5 {[%clk 0:00:16]}  a5 {[%clk 0:02:01]} 26. Kf2 {[%clk 0:00:15]}  Nb4 {[%clk 0:02:02]} 27. Bxb4 {[%clk 0:00:13]}  axb4 {[%clk 0:02:01]} 28. Nd5 {[%clk 0:00:13]}  c5 {[%clk 0:01:56]} 29. c3 {[%clk 0:00:08]}  bxc3 {[%clk 0:01:56]} 30. Nxc3 {[%clk 0:00:09]}  Rb6 {[%clk 0:01:55]} 31. b3 {[%clk 0:00:09]}  Re6 {[%clk 0:01:54]} 32. Ne4 {[%clk 0:00:09]}  Ra6 {[%clk 0:01:52]} 33. a4 {[%clk 0:00:09]}  Rc6 {[%clk 0:01:50]} 34. Ke3 {[%clk 0:00:10]}  f5 {[%clk 0:01:51]} 35. Nd2 {[%clk 0:00:09]}  g5 {[%clk 0:01:51]} 36. Nc4 {[%clk 0:00:09]}  Re6+ {[%clk 0:01:50]} 37. Kd2 {[%clk 0:00:09]}  f4 {[%clk 0:01:50]} 38. a5 {[%clk 0:00:08]}  Kf7 {[%clk 0:01:49]} 39. d4 {[%clk 0:00:09]}  cxd4 {[%clk 0:01:49]} 40. b4 {[%clk 0:00:09]}  Ke7 {[%clk 0:01:44]} 41. b5 {[%clk 0:00:09]}  Kd7 {[%clk 0:01:44]} 42. a6 {[%clk 0:00:07]}  Kc7 {[%clk 0:01:44]} 43. b6+ {[%clk 0:00:07]}  Kc6 {[%clk 0:01:44]} 44. b7 {[%clk 0:00:04]}  Re8 {[%clk 0:01:43]} 45. Kd3 {[%clk 0:00:02]}  Kc7 {[%clk 0:01:40]} 46. Kxd4 {[%clk 0:00:02]}  Re6 {[%clk 0:01:40]} 47. Kd5 {[%clk 0:00:03]}  Rxa6 {[%clk 0:01:39]} 48. Ne5 {[%clk 0:00:03]}  Ra2 {[%clk 0:01:35]} 49. g3 {[%clk 0:00:03]}  Rxh2 {[%clk 0:01:33]} 50. gxf4 {[%clk 0:00:03]}  gxf4 {[%clk 0:01:33]} 51. Ke4 {[%clk 0:00:04]}  h5 {[%clk 0:01:31]} 52. Kxf4 {[%clk 0:00:04]}  Rg2 {[%clk 0:01:30]} 53. Nc6 {[%clk 0:00:01]}  Kxb7 {[%clk 0:01:27]} 54. Nd4 {[%clk 0:00:02]}  h4 {[%clk 0:01:27]} 55. Ke5 {[%clk 0:00:02]}  h3 {[%clk 0:01:27]} 56. f4 {[%clk 0:00:02]}  h2 {[%clk 0:01:28]} 57. f5 {[%clk 0:00:03]}  h1=Q {[%clk 0:01:24]} 58. f6 {[%clk 0:00:04]}  Qe1+ {[%clk 0:01:23]} 59. Kd6 {[%clk 0:00:04]}  Rd2 {[%clk 0:01:23]} 60. Kd5 {[%clk 0:00:04]}  Qf2 {[%clk 0:01:23]} 61. Ke6 {[%clk 0:00:04]}  Rxd4 {[%clk 0:01:22]} 62. f7 {[%clk 0:00:05]}  Re4+ {[%clk 0:01:22]} 63. Kd7 {[%clk 0:00:05]}  Qxf7+ {[%clk 0:01:21]} 64. Kd6 {[%clk 0:00:05]}  Qf5 {[%clk 0:01:20]} 1/2-1/2


[Site "https://www.chess.com"]

[Event "Titled Tuesday Blitz May 30 Early 2023"]
[White "gao6969"]
[Black "Dushyant Sharma"]
[BlackFideId "25065130"]
[WhiteElo "2310"]
[BlackElo "2198"]
[Result "1-0"]
[Round "02"]
[TimeControl "180+2"]
[Date "2023.05.30"]
[WhiteClock "0:01:24"]
[BlackClock "0:00:20"]

1. e4 {[%clk 0:02:59]}  d5 {[%clk 0:02:58]} 2. exd5 {[%clk 0:02:59]}  Nf6 {[%clk 0:02:58]} 3. Nc3 {[%clk 0:02:59]}  Bg4 {[%clk 0:02:57]} 4. Be2 {[%clk 0:02:58]}  Bxe2 {[%clk 0:02:57]} 5. Qxe2 {[%clk 0:02:59]}  c6 {[%clk 0:02:58]} 6. dxc6 {[%clk 0:02:53]}  Nxc6 {[%clk 0:02:59]} 7. Nf3 {[%clk 0:02:53]}  e6 {[%clk 0:02:59]} 8. O-O {[%clk 0:02:53]}  Be7 {[%clk 0:02:59]} 9. Rd1 {[%clk 0:02:50]}  O-O {[%clk 0:02:56]} 10. d4 {[%clk 0:02:50]}  Qb6 {[%clk 0:02:55]} 11. Rb1 {[%clk 0:02:33]}  Rfd8 {[%clk 0:02:53]} 12. Be3 {[%clk 0:02:33]}  Qa5 {[%clk 0:02:52]} 13. a3 {[%clk 0:02:27]}  Rac8 {[%clk 0:02:40]} 14. h3 {[%clk 0:02:20]}  a6 {[%clk 0:02:37]} 15. b4 {[%clk 0:02:13]}  Qh5 {[%clk 0:02:19]} 16. Na4 {[%clk 0:01:54]}  a5 {[%clk 0:01:41]} 17. Nb6 {[%clk 0:01:48]}  Rc7 {[%clk 0:01:34]} 18. Bf4 {[%clk 0:01:44]}  Bd6 {[%clk 0:01:31]} 19. Bxd6 {[%clk 0:01:39]}  Rxd6 {[%clk 0:01:32]} 20. Nc4 {[%clk 0:01:35]}  Nxd4 {[%clk 0:01:16]} 21. Nxd4 {[%clk 0:01:32]}  Qxe2 {[%clk 0:00:58]} 22. Nxe2 {[%clk 0:01:33]}  Rxd1+ {[%clk 0:00:48]} 23. Rxd1 {[%clk 0:01:33]}  Nd5 {[%clk 0:00:41]} 24. Ne3 {[%clk 0:01:25]}  h6 {[%clk 0:00:31]} 25. Nxd5 {[%clk 0:01:24]}  exd5 {[%clk 0:00:32]} 26. c3 {[%clk 0:01:23]}  axb4 {[%clk 0:00:28]} 27. axb4 {[%clk 0:01:24]}  Re7 {[%clk 0:00:27]} 28. Kf1 {[%clk 0:01:24]}  Re5 {[%clk 0:00:20]} 29. Nf4 {[%clk 0:01:24]} 1-0


[Site "https://www.chess.com"]

[Event "Titled Tuesday Blitz May 30 Early 2023"]
[White "Bilan, Danila"]
[Black "Mikhaylova, Irina"]
[WhiteFideId "24161918"]
[BlackFideId "4109040"]
[WhiteElo "2182"]
[BlackElo "1975"]
[Result "1-0"]
[Round "02"]
[TimeControl "180+2"]
[Date "2023.05.30"]
[WhiteClock "0:00:40"]
[BlackClock "0:00:39"]

1. d4 {[%clk 0:03:00]}  Nf6 {[%clk 0:02:59]} 2. Nf3 {[%clk 0:03:00]}  g6 {[%clk 0:02:59]} 3. Bg5 {[%clk 0:03:00]}  Bg7 {[%clk 0:02:59]} 4. c3 {[%clk 0:03:00]}  O-O {[%clk 0:02:59]} 5. Nbd2 {[%clk 0:03:00]}  d6 {[%clk 0:03:00]} 6. e4 {[%clk 0:03:00]}  Nc6 {[%clk 0:02:59]} 7. Qc2 {[%clk 0:03:00]}  h6 {[%clk 0:02:59]} 8. Bh4 {[%clk 0:03:00]}  e5 {[%clk 0:02:59]} 9. dxe5 {[%clk 0:02:59]}  Nxe5 {[%clk 0:02:59]} 10. Nxe5 {[%clk 0:02:58]}  dxe5 {[%clk 0:02:59]} 11. Bc4 {[%clk 0:02:58]}  Qe7 {[%clk 0:02:59]} 12. O-O {[%clk 0:02:57]}  Be6 {[%clk 0:02:59]} 13. Rad1 {[%clk 0:02:56]}  Rfd8 {[%clk 0:02:56]} 14. Qb3 {[%clk 0:02:51]}  Bxc4 {[%clk 0:02:52]} 15. Nxc4 {[%clk 0:02:39]}  c6 {[%clk 0:02:43]} 16. f3 {[%clk 0:01:57]}  Qc7 {[%clk 0:02:02]} 17. Rxd8+ {[%clk 0:01:44]}  Rxd8 {[%clk 0:02:02]} 18. Rd1 {[%clk 0:01:45]}  Rxd1+ {[%clk 0:01:54]} 19. Qxd1 {[%clk 0:01:46]}  Qd7 {[%clk 0:01:54]} 20. Qxd7 {[%clk 0:01:41]}  Nxd7 {[%clk 0:01:55]} 21. Na5 {[%clk 0:01:41]}  Nc5 {[%clk 0:01:50]} 22. b4 {[%clk 0:01:20]}  Nd3 {[%clk 0:01:25]} 23. Nxb7 {[%clk 0:01:16]}  Nc1 {[%clk 0:01:24]} 24. Be1 {[%clk 0:00:52]}  Nxa2 {[%clk 0:01:06]} 25. Bd2 {[%clk 0:00:52]}  Bf8 {[%clk 0:01:02]} 26. Kf2 {[%clk 0:00:52]}  f5 {[%clk 0:00:57]} 27. Ke2 {[%clk 0:00:51]}  Kf7 {[%clk 0:00:58]} 28. Kd3 {[%clk 0:00:51]}  Ke6 {[%clk 0:00:58]} 29. Kc4 {[%clk 0:00:51]}  Kd7 {[%clk 0:00:55]} 30. Kb3 {[%clk 0:00:49]}  Kc7 {[%clk 0:00:55]} 31. Nc5 {[%clk 0:00:41]}  Bxc5 {[%clk 0:00:39]} 32. bxc5 {[%clk 0:00:40]} 1-0


[Site "https://www.chess.com"]

[Event "Titled Tuesday Blitz May 30 Early 2023"]
[White "Maung, Maung Kyaw Zaw Hein"]
[Black "Jakic, Ivan"]
[WhiteFideId "13001698"]
[BlackFideId "14504901"]
[WhiteElo "2019"]
[BlackElo "2370"]
[Result "0-1"]
[Round "02"]
[TimeControl "180+2"]
[Date "2023.05.30"]
[WhiteClock "0:02:29"]
[BlackClock "0:02:33"]

1. Nf3 {[%clk 0:03:00]}  Nf6 {[%clk 0:02:59]} 2. c4 {[%clk 0:02:59]}  Nc6 {[%clk 0:02:59]} 3. d4 {[%clk 0:02:59]}  e6 {[%clk 0:02:59]} 4. Bg5 {[%clk 0:02:58]}  Bb4+ {[%clk 0:02:58]} 5. Nbd2 {[%clk 0:02:57]}  h6 {[%clk 0:02:58]} 6. Bxf6 {[%clk 0:02:55]}  Qxf6 {[%clk 0:02:59]} 7. e3 {[%clk 0:02:56]}  O-O {[%clk 0:02:58]} 8. a3 {[%clk 0:02:55]}  Bxd2+ {[%clk 0:02:57]} 9. Qxd2 {[%clk 0:02:55]}  d6 {[%clk 0:02:58]} 10. Be2 {[%clk 0:02:51]}  e5 {[%clk 0:02:58]} 11. d5 {[%clk 0:02:49]}  Ne7 {[%clk 0:02:58]} 12. O-O {[%clk 0:02:50]}  Ng6 {[%clk 0:02:58]} 13. b4 {[%clk 0:02:50]}  a5 {[%clk 0:02:54]} 14. c5 {[%clk 0:02:49]}  Bf5 {[%clk 0:02:52]} 15. Rfc1 {[%clk 0:02:45]}  axb4 {[%clk 0:02:52]} 16. axb4 {[%clk 0:02:45]}  Rxa1 {[%clk 0:02:52]} 17. Rxa1 {[%clk 0:02:43]}  Be4 {[%clk 0:02:52]} 18. Ra7 {[%clk 0:02:40]}  Rb8 {[%clk 0:02:48]} 19. Bd3 {[%clk 0:02:34]}  Bxf3 {[%clk 0:02:37]} 20. gxf3 {[%clk 0:02:34]}  Nh4 {[%clk 0:02:34]} 21. f4 {[%clk 0:02:29]}  Nf3+ {[%clk 0:02:33]} 0-1


[Site "https://www.chess.com"]

[Event "Titled Tuesday Blitz May 30 Early 2023"]
[White "Horak, Martin"]
[Black "Jarocka, Liwia"]
[WhiteFideId "367095"]
[BlackFideId "21807558"]
[WhiteElo "2091"]
[BlackElo "2013"]
[Result "1/2-1/2"]
[Round "02"]
[TimeControl "180+2"]
[Date "2023.05.30"]
[WhiteClock "0:00:02"]
[BlackClock "0:00:21"]

1. e4 {[%clk 0:03:00]}  e6 {[%clk 0:03:00]} 2. Nf3 {[%clk 0:03:00]}  d5 {[%clk 0:03:01]} 3. e5 {[%clk 0:03:01]}  c5 {[%clk 0:03:01]} 4. b4 {[%clk 0:03:01]}  cxb4 {[%clk 0:03:00]} 5. a3 {[%clk 0:03:02]}  bxa3 {[%clk 0:03:00]} 6. d4 {[%clk 0:03:02]}  Nc6 {[%clk 0:03:00]} 7. c3 {[%clk 0:03:02]}  Nge7 {[%clk 0:02:56]} 8. Bd3 {[%clk 0:03:01]}  Ng6 {[%clk 0:02:54]} 9. h4 {[%clk 0:02:59]}  Be7 {[%clk 0:02:51]} 10. h5 {[%clk 0:02:59]}  Nf8 {[%clk 0:02:51]} 11. Nxa3 {[%clk 0:02:56]}  Nd7 {[%clk 0:02:51]} 12. h6 {[%clk 0:02:53]}  g6 {[%clk 0:02:50]} 13. Nb5 {[%clk 0:02:53]}  O-O {[%clk 0:02:45]} 14. Ba3 {[%clk 0:02:41]}  f6 {[%clk 0:02:37]} 15. Qe2 {[%clk 0:02:26]}  fxe5 {[%clk 0:02:34]} 16. dxe5 {[%clk 0:02:25]}  a6 {[%clk 0:02:28]} 17. Nbd4 {[%clk 0:02:10]}  Bxa3 {[%clk 0:02:24]} 18. Rxa3 {[%clk 0:02:08]}  Qe7 {[%clk 0:02:24]} 19. Ra2 {[%clk 0:02:01]}  Nc5 {[%clk 0:02:24]} 20. Bc2 {[%clk 0:01:55]}  Bd7 {[%clk 0:02:20]} 21. O-O {[%clk 0:01:48]}  Rf4 {[%clk 0:02:19]} 22. Rb1 {[%clk 0:01:38]}  Raf8 {[%clk 0:02:17]} 23. g3 {[%clk 0:01:21]}  Nxd4 {[%clk 0:02:09]} 24. Nxd4 {[%clk 0:01:20]}  Rxf2 {[%clk 0:02:07]} 25. Qxf2 {[%clk 0:01:20]}  Rxf2 {[%clk 0:02:07]} 26. Kxf2 {[%clk 0:01:21]}  b5 {[%clk 0:02:07]} 27. Kg2 {[%clk 0:01:08]}  Qg5 {[%clk 0:02:00]} 28. Bd1 {[%clk 0:00:54]}  Qxh6 {[%clk 0:01:42]} 29. Bg4 {[%clk 0:00:47]}  Qg5 {[%clk 0:01:41]} 30. Bh3 {[%clk 0:00:44]}  h5 {[%clk 0:01:35]} 31. Nf3 {[%clk 0:00:41]}  Qe3 {[%clk 0:01:31]} 32. Re1 {[%clk 0:00:34]}  Qxc3 {[%clk 0:01:27]} 33. Ree2 {[%clk 0:00:27]}  Ne4 {[%clk 0:01:26]} 34. Rec2 {[%clk 0:00:21]}  Qb3 {[%clk 0:01:01]} 35. Rab2 {[%clk 0:00:21]}  Qa3 {[%clk 0:01:00]} 36. Ra2 {[%clk 0:00:22]}  Qe7 {[%clk 0:00:55]} 37. Rxa6 {[%clk 0:00:21]}  b4 {[%clk 0:00:39]} 38. Rc7 {[%clk 0:00:19]}  b3 {[%clk 0:00:38]} 39. Ra8+ {[%clk 0:00:17]}  Kf7 {[%clk 0:00:38]} 40. Raa7 {[%clk 0:00:17]}  Ke8 {[%clk 0:00:32]} 41. Ra8+ {[%clk 0:00:13]}  Kf7 {[%clk 0:00:32]} 42. Raa7 {[%clk 0:00:13]}  b2 {[%clk 0:00:23]} 43. Rxd7 {[%clk 0:00:12]}  b1=Q {[%clk 0:00:23]} 44. Rxe7+ {[%clk 0:00:12]}  Kf8 {[%clk 0:00:23]} 45. Rf7+ {[%clk 0:00:09]}  Kg8 {[%clk 0:00:22]} 46. Rg7+ {[%clk 0:00:08]}  Kf8 {[%clk 0:00:21]} 47. Rgf7+ {[%clk 0:00:06]}  Kg8 {[%clk 0:00:21]} 48. Rg7+ {[%clk 0:00:02]}  Kf8 {[%clk 0:00:21]} 49. Rgf7+ {[%clk 0:00:02]} 1/2-1/2


[Site "https://www.chess.com"]

[Event "Titled Tuesday Blitz May 30 Early 2023"]
[White "Sovetbekova, Nurai"]
[Black "Jegorovas, Aleksandras"]
[WhiteFideId "13801910"]
[BlackFideId "12801950"]
[WhiteElo "1857"]
[BlackElo "2247"]
[Result "1-0"]
[Round "02"]
[TimeControl "180+2"]
[Date "2023.05.30"]
[WhiteClock "0:00:06"]
[BlackClock "0:00:00"]

1. d4 {[%clk 0:03:00]}  Nf6 {[%clk 0:02:58]} 2. c4 {[%clk 0:03:01]}  e6 {[%clk 0:02:57]} 3. Nc3 {[%clk 0:03:01]}  Bb4 {[%clk 0:02:56]} 4. Bd2 {[%clk 0:02:59]}  b6 {[%clk 0:02:54]} 5. e3 {[%clk 0:02:59]}  Bb7 {[%clk 0:02:53]} 6. Nf3 {[%clk 0:02:59]}  O-O {[%clk 0:02:53]} 7. Bd3 {[%clk 0:02:59]}  d6 {[%clk 0:02:52]} 8. O-O {[%clk 0:02:59]}  Nbd7 {[%clk 0:02:51]} 9. Re1 {[%clk 0:02:54]}  Bxc3 {[%clk 0:02:51]} 10. Bxc3 {[%clk 0:02:55]}  Ne4 {[%clk 0:02:51]} 11. Qc2 {[%clk 0:02:51]}  f5 {[%clk 0:02:50]} 12. Rad1 {[%clk 0:02:48]}  Nxc3 {[%clk 0:02:42]} 13. Qxc3 {[%clk 0:02:46]}  Bxf3 {[%clk 0:02:42]} 14. gxf3 {[%clk 0:02:47]}  Qg5+ {[%clk 0:02:39]} 15. Kf1 {[%clk 0:02:40]}  Qh5 {[%clk 0:02:38]} 16. Ke2 {[%clk 0:02:40]}  e5 {[%clk 0:02:27]} 17. e4 {[%clk 0:02:29]}  Nf6 {[%clk 0:02:13]} 18. dxe5 {[%clk 0:01:58]}  dxe5 {[%clk 0:02:12]} 19. Qc2 {[%clk 0:01:57]}  Qxh2 {[%clk 0:01:51]} 20. Rh1 {[%clk 0:01:51]}  Qf4 {[%clk 0:01:51]} 21. exf5 {[%clk 0:01:51]}  Rad8 {[%clk 0:01:19]} 22. Be4 {[%clk 0:01:49]}  Nxe4 {[%clk 0:01:06]} 23. fxe4 {[%clk 0:01:41]}  Rd4 {[%clk 0:01:02]} 24. f3 {[%clk 0:01:40]}  Rfd8 {[%clk 0:01:01]} 25. Rxd4 {[%clk 0:01:01]}  Rxd4 {[%clk 0:01:00]} 26. Qc1 {[%clk 0:01:01]}  Qg3 {[%clk 0:00:49]} 27. Rg1 {[%clk 0:00:34]}  Qh2+ {[%clk 0:00:49]} 28. Ke3 {[%clk 0:00:33]}  Qf4+ {[%clk 0:00:43]} 29. Ke2 {[%clk 0:00:32]}  Qh2+ {[%clk 0:00:42]} 30. Ke3 {[%clk 0:00:32]}  Qh6+ {[%clk 0:00:34]} 31. Ke2 {[%clk 0:00:31]}  Qc6 {[%clk 0:00:32]} 32. b3 {[%clk 0:00:28]}  Qf6 {[%clk 0:00:26]} 33. c5 {[%clk 0:00:18]}  bxc5 {[%clk 0:00:25]} 34. Qxc5 {[%clk 0:00:18]}  h5 {[%clk 0:00:24]} 35. Rg6 {[%clk 0:00:12]}  Qh4 {[%clk 0:00:22]} 36. Qxe5 {[%clk 0:00:10]}  Rd7 {[%clk 0:00:16]} 37. Qe8+ {[%clk 0:00:09]}  Kh7 {[%clk 0:00:16]} 38. Qxd7 {[%clk 0:00:09]}  Qh2+ {[%clk 0:00:16]} 39. Ke3 {[%clk 0:00:09]}  Qb2 {[%clk 0:00:13]} 40. Qd4 {[%clk 0:00:06]}  Qc1+ {[%clk 0:00:13]} 41. Kd3 {[%clk 0:00:06]}  Qb1+ {[%clk 0:00:12]} 42. Kc4 {[%clk 0:00:06]}  Qc2+ {[%clk 0:00:12]} 43. Kd5 {[%clk 0:00:07]}  c6+ {[%clk 0:00:00]} 44. Ke6 {[%clk 0:00:06]} 1-0


[Site "https://www.chess.com"]

[Event "Titled Tuesday Blitz May 30 Early 2023"]
[White "Goffredo_Fofi"]
[Black "lluiss"]
[WhiteElo "2514"]
[BlackElo "2303"]
[Result "0-1"]
[Round "02"]
[TimeControl "180+2"]
[Date "2023.05.30"]
[WhiteClock "0:00:05"]
[BlackClock "0:00:03"]

1. Nf3 {[%clk 0:02:59]}  Nf6 {[%clk 0:02:58]} 2. d4 {[%clk 0:02:57]}  g6 {[%clk 0:02:57]} 3. c4 {[%clk 0:02:55]}  Bg7 {[%clk 0:02:57]} 4. Nc3 {[%clk 0:02:55]}  d5 {[%clk 0:02:56]} 5. cxd5 {[%clk 0:02:53]}  Nxd5 {[%clk 0:02:56]} 6. e4 {[%clk 0:02:54]}  Nxc3 {[%clk 0:02:56]} 7. bxc3 {[%clk 0:02:54]}  c5 {[%clk 0:02:56]} 8. Rb1 {[%clk 0:02:55]}  O-O {[%clk 0:02:54]} 9. Be2 {[%clk 0:02:55]}  cxd4 {[%clk 0:02:54]} 10. cxd4 {[%clk 0:02:56]}  Qa5+ {[%clk 0:02:54]} 11. Bd2 {[%clk 0:02:57]}  Qxa2 {[%clk 0:02:53]} 12. O-O {[%clk 0:02:58]}  Bg4 {[%clk 0:02:53]} 13. Bg5 {[%clk 0:02:58]}  Bf6 {[%clk 0:02:51]} 14. Bh6 {[%clk 0:02:35]}  Rd8 {[%clk 0:02:47]} 15. e5 {[%clk 0:02:32]}  Bxe5 {[%clk 0:02:36]} 16. h3 {[%clk 0:02:12]}  Bxf3 {[%clk 0:02:27]} 17. Bxf3 {[%clk 0:02:13]}  Nc6 {[%clk 0:02:27]} 18. Qe1 {[%clk 0:01:47]}  Bf6 {[%clk 0:01:48]} 19. d5 {[%clk 0:01:23]}  Nd4 {[%clk 0:01:42]} 20. Be4 {[%clk 0:01:24]}  Ne2+ {[%clk 0:01:32]} 21. Kh1 {[%clk 0:01:21]}  Nc3 {[%clk 0:01:32]} 22. Rxb7 {[%clk 0:01:11]}  Nxe4 {[%clk 0:01:31]} 23. Qxe4 {[%clk 0:01:12]}  Qxd5 {[%clk 0:01:30]} 24. Qb1 {[%clk 0:01:11]}  Qh5 {[%clk 0:01:23]} 25. Be3 {[%clk 0:01:06]}  a5 {[%clk 0:01:10]} 26. Rb5 {[%clk 0:01:06]}  Qh4 {[%clk 0:01:05]} 27. Bb6 {[%clk 0:01:03]}  Rd2 {[%clk 0:00:59]} 28. Be3 {[%clk 0:01:00]}  Rd6 {[%clk 0:00:44]} 29. Bc5 {[%clk 0:00:52]}  Rd5 {[%clk 0:00:40]} 30. Rc1 {[%clk 0:00:30]}  a4 {[%clk 0:00:38]} 31. Rb7 {[%clk 0:00:24]}  a3 {[%clk 0:00:33]} 32. Rb8+ {[%clk 0:00:23]}  Rxb8 {[%clk 0:00:30]} 33. Qxb8+ {[%clk 0:00:24]}  Kg7 {[%clk 0:00:30]} 34. Qa8 {[%clk 0:00:19]}  Rd3 {[%clk 0:00:18]} 35. Qa6 {[%clk 0:00:15]}  Rb3 {[%clk 0:00:14]} 36. Be3 {[%clk 0:00:14]}  Qe4 {[%clk 0:00:09]} 37. Qe2 {[%clk 0:00:08]}  Qd3 {[%clk 0:00:08]} 38. Qf3 {[%clk 0:00:06]}  a2 {[%clk 0:00:07]} 39. Qf4 {[%clk 0:00:05]}  Rb1 {[%clk 0:00:05]} 40. Qh6+ {[%clk 0:00:06]}  Kg8 {[%clk 0:00:05]} 41. Kh2 {[%clk 0:00:04]}  Rxc1 {[%clk 0:00:03]} 42. Bxc1 {[%clk 0:00:05]} 0-1


[Site "https://www.chess.com"]